Cogmind - Beta 14 @@@ ROGUE MODE // 2024.08.22 @ 19:36:41 Player: Daffa0360 Result: Destroyed by S-10 Pest with Light Assault Rifle Performance ------------- Evolutions (0) 0 Regions Visited (3) 600 Robots Destroyed (24) 120 Value Destroyed (633) 633 Prototype IDs (13) 260 Alien Tech Used (0) 0 Bonus (166) 166 TOTAL SCORE: 1779 Bonus ------- Follower Combat Kills 166 Cogmind --------- Core Integrity 0/250 Matter 300/300 Energy 104/250 System Corruption 1% Temperature Hot (299) Movement Rolling (85) Location -10/Subcaves Parts ------- > --- POWER (1+1) ------ Ion Engine > --- PROPULSION (2) --- Wheel Armored Wheel > --- UTILITY (2) ------ Small Storage Unit Improved Targeting Computer > --- WEAPON (2) ------- Powered Cannon > --- INVENTORY (8) ---- Light Treads Compact Wheel Improved Targeting Computer ECM Suite Medium Laser Slug Cannon Mining Laser Peak State ------------ > --- POWER ------------ Ion Engine > --- PROPULSION ------- Wheel Armored Wheel > --- UTILITY ---------- Small Storage Unit Improved Targeting Computer > --- WEAPON ----------- Powered Cannon > --- INVENTORY -------- Light Treads Compact Wheel Improved Targeting Computer ECM Suite Medium Laser Slug Cannon Mining Laser [Rating: 22] Favorites ----------- Power Ion Engine Engine Ion Engine Propulsion Armored Wheel Leg Aluminum Leg Wheel Armored Wheel Utility Small Storage Unit Storage Small Storage Unit Processor Improved Targeting Computer Weapon Heavy EM Pulse Gun Energy Gun Heavy EM Pulse Gun Energy Cannon Powered Cannon Special Weapon Mining Laser Build | -11 -10 -10 -10 ------- Run | Yrd Mat Min Sub Slots Evolved . | . . . . Power . | . . . . Propulsion . | . . . . Utility . | . . . . Weapon . | . . . . Parts Attached 21 | . 6 1 14 Power 4 | . 1 . 3 Engine 4 | . 1 . 3 Core . | . . . . Reactor . | . . . . Propulsion 3 | . 2 . 1 Treads . | . . . . Leg . | . . . . Wheel 3 | . 2 . 1 Hover . | . . . . Flight . | . . . . Utility 1 | . 1 . . Device . | . . . . Storage . | . . . . Processor 1 | . 1 . . Hackware . | . . . . Protection . | . . . . Artifact . | . . . . Weapon 13 | . 2 1 10 Energy Gun 9 | . 2 1 6 Energy Cannon 1 | . . . 1 Ballistic Gun . | . . . . Ballistic Cannon . | . . . . Launcher . | . . . . Special Weapon 3 | . . . 3 Impact Weapon . | . . . . Slashing Weapon . | . . . . Piercing Weapon . | . . . . Special Melee Weapon . | . . . . Unidentified Prototypes . | . . . . Parts Lost 3 | . 1 . 2 Power 1 | . . . 1 Propulsion 1 | . . . 1 Utility . | . . . . Weapon 1 | . 1 . . Highest Loss Streak 2 | . 1 . 2 To Critical Strikes . | . . . . Average Slot Usage (%) 89 | . 89 95 84 Engine 12 | . 14 14 11 Leg 1 | . 6 . . Wheel 24 | . 21 28 24 Storage 13 | . 14 14 13 Processor 12 | . 10 14 13 Energy Gun 19 | . 21 24 15 Energy Cannon 2 | . . . 5 Peak Build Rating 22 | 6 12 12 22 Average Rating 13 | 6 9 11 15 On Entrance 8 | 6 6 11 12 Naked Turns . | . . . . Heaviest Build 19 | 11 15 16 19 Greatest Support 24 | 20 24 24 24 Greatest Overweight (x) 1 | . 1 . 1 Average Overweight (x) . | . . . . Largest Inventory Capacity 8 | 8 8 8 8 Average Capacity 8 | 8 8 8 8 Most Carried 8 | 6 8 8 8 Average Carried 7 | 6 6 7 7 Final Capacity 8 | 8 8 8 8 Final Carried 8 | 6 8 8 7 Class Distribution -------------------- 100% | Mutant Dominant Class ---------------- Mutant | -10/Materials Mutant | -10/Mines Mutant | -10/Subcaves Resources | -11 -10 -10 -10 ----------- Run | Yrd Mat Min Sub Matter Collected 410 | 200 50 25 135 Remotely . | . . . . Salvage Created 863 | . 203 140 520 Parts 61 | . 15 13 33 Haulers Intercepted . | . . . . Recyclers Shooed . | . . . . Parts Field Recycled . | . . . . Retrieved Matter . | . . . . Parts Self-Destructed 3 | . . . 3 Prevented 5 | . . . 5 Kills | -11 -10 -10 -10 ------- Run | Yrd Mat Min Sub Combat Hostiles Destroyed 23 | . 8 3 12 Guns 21 | . 8 3 10 Cannons 2 | . . . 2 Classes Destroyed 4 | . 2 1 1 Tunneler 1 | . . 1 . Swarmer 10 | . 6 1 3 Grunt 5 | . 2 2 1 Subdweller 8 | . . . 8 Best Kill Streak 3 | . 3 3 3 Combat Bots Only 3 | . 3 2 3 Max Kills in Single Turn 2 | . 1 2 1 Gunslinging . | . . . . Exploded . | . . . . Melee . | . . . . Uniques/NPCs Destroyed . | . . . . Combat | -11 -10 -10 -10 -------- Run | Yrd Mat Min Sub Hostile Shots Fired 82 | . 23 3 56 Missed 31 | . 9 2 20 Damage Taken 748 | . 195 10 543 Core 250 | . 65 . 185 Absorbed by Shields . | . . . . Core Remaining (%) 100 | 100 . . . Volleys Fired 104 | . 21 4 79 Largest 2 | . 2 2 2 Hottest 100 | . 85 90 100 Shots Fired 156 | . 30 8 118 Gun 121 | . 30 8 83 Cannon 29 | . . . 29 Launcher . | . . . . Special 6 | . . . 6 Kinetic . | . . . . Thermal 38 | . . . 38 Explosive . | . . . . Electromagnetic 118 | . 30 8 80 Robot Hit Streak 10 | . 5 6 10 Robot Miss Streak 3 | . 2 . 3 Penetration Max . | . . . . Secondary Targets 2 | . 1 . 1 Max Gunslinging Chain 1 | . 1 . 1 Shots Hit Robots 70 | . 17 6 47 Core Hits 36 | . 9 5 22 Critical Kills . | . . . . Critical Parts Destroyed . | . . . . Critical Strikes 3 | . . . 3 Corrupt 3 | . . . 3 Melee Attacks . | . . . . Impact . | . . . . Slashing . | . . . . Piercing . | . . . . Sneak Attacks . | . . . . Combat Hostiles . | . . . . Follow-up Attacks . | . . . . Damage Inflicted 1260 | . 298 108 854 Guns 926 | . 269 108 549 Cannons 305 | . . . 305 Explosions 29 | . 29 . . Melee . | . . . . Ramming . | . . . . Kinetic . | . . . . Thermal 334 | . 29 . 305 Explosive . | . . . . Electromagnetic 926 | . 269 108 549 Impact . | . . . . Slashing . | . . . . Piercing . | . . . . Highest Corruption 1 | . 1 1 1 Average Corruption 1 | . 1 1 1 Corruption Purged . | . . . . Corruption Blocked . | . . . . Effects 10 | . 1 2 7 Message Errors 2 | . . 1 1 Matter Fused 2 | . . 1 1 Heat Flow Errors 3 | . . . 3 Energy Discharges 1 | . . . 1 Parts Rejected 1 | . . . 1 Data Loss (major) 1 | . 1 . . Overload Shots . | . . . . Overflow Damage 18 | . . . 18 Projectiles 18 | . . . 18 Explosions . | . . . . Melee . | . . . . Knockbacks . | . . . . Impact . | . . . . Kinetic . | . . . . Secondary . | . . . . Self-Inflicted Damage 38 | . 38 . . Shots 1 | . 1 . . Rammed . | . . . . Targets Rammed . | . . . . Kicked . | . . . . Crushed . | . . . . Highest Temperature 279 | . 96 90 279 Average Temperature 49 | . 22 40 140 Received Heat Transfer 381 | . 18 6 357 Siege Activations . | . . . . Robots Corrupted . | . . . . Combat Hostiles . | . . . . Parts Fried 3 | . 1 . 2 Impact Corruptions . | . . . . Robots Melted . | . . . . Combat Hostiles . | . . . . Parts Melted . | . . . . Heat Transferred 50 | . 50 . . Parts Sabotaged . | . . . . Parts Stolen . | . . . . Parts Stripped . | . . . . Power Chain Reactions 1 | . 1 . . Alert | -11 -10 -10 -10 ------- Run | Yrd Mat Min Sub Peak Influence 298 | . 298 103 . Initial 17 | . . 17 . Average 69 | . 89 54 . Maximum Alert Level 1 | . 1 . . Low Security (%) 93 | 100 84 100 . Level 1 6 | . 15 . . Level 2 . | . . . . Level 3 . | . . . . Level 4 . | . . . . Level 5 . | . . . . High Security . | . . . . Max Security . | . . . . Squads Dispatched 4 | . 4 . . Investigation 2 | . 2 . . Extermination . | . . . . Reinforcement 2 | . 2 . . Assault . | . . . . Garrison . | . . . . Intercept . | . . . . Searches Triggered . | . . . . Construction Impeded . | . . . . Haulers Reinforced . | . . . . Active Scanning Responses . | . . . . Cargo Convoy Interrupts . | . . . . Stealth | -11 -10 -10 -10 --------- Run | Yrd Mat Min Sub Distress Signals 1 | . 1 . . Communications Jammed . | . . . . Distress Signals . | . . . . Times Spotted 42 | . 18 3 21 Peak Tracking Total 5 | . 4 2 5 Tactical Retreats 3 | . 2 . 1 Traps | -11 -10 -10 -10 ------- Run | Yrd Mat Min Sub Traps Triggered 3 | . 2 . 1 Indirectly . | . . . . Trap Hack Attempts . | . . . . Triggered . | . . . . Disarmed . | . . . . Reprogrammed . | . . . . Reused . | . . . . Traps Extracted . | . . . . Installed . | . . . . Triggered . | . . . . Machines | -11 -10 -10 -10 ---------- Run | Yrd Mat Min Sub Machines Disabled 2 | . . 1 1 Max in Single Turn 1 | . . 1 1 Machines Repaired . | . . . . Machines Dismantled . | . . . . Machines Sabotaged . | . . . . Overloaded Fab Kills . | . . . . Hacking | -11 -10 -10 -10 --------- Run | Yrd Mat Min Sub Machines Accessed 6 | . 4 1 1 Terminals 5 | . 4 1 . Fabricators . | . . . . Repair Stations . | . . . . Recycling Units . | . . . . Scanalyzers . | . . . . Garrison Access . | . . . . Total Hacks 30 | . 17 4 9 Successful 21 | . 10 2 9 Failed 9 | . 7 2 . Catastrophic 1 | . . 1 . Database Lockouts . | . . . . Manual 8 | . 8 . . Terminals 21 | . 17 4 . Fabricators . | . . . . Repair Stations . | . . . . Recycling Units . | . . . . Scanalyzers . | . . . . Garrison Access . | . . . . Terminal Hacks 18 | . 7 2 9 Record 10 | . . 2 8 Prototype ID Bank 1 | . 1 . . Terminal Index 1 | . 1 . . Alert Level 1 | . 1 . . Unreport Threat 1 | . 1 . . Dispatch Records 1 | . 1 . . Registered Components 1 | . 1 . . Zone Layout 1 | . 1 . . Derelict Proto ID Bank 1 | . . . 1 Fabricator Hacks . | . . . . Repair Station Hacks . | . . . . Recycling Unit Hacks . | . . . . Scanalyzer . | . . . . Garrison Access Hacks . | . . . . Unauthorized Hacks 3 | . 3 . . Terminals 3 | . 3 . . Botnet 3 | . 3 . . Fabricators . | . . . . Repair Stations . | . . . . Recycling Units . | . . . . Scanalyzers . | . . . . Garrison Access . | . . . . Data Cores Recovered . | . . . . Used . | . . . . Hacking Detections 5 | . 4 1 . Full Trace Events 1 | . 1 . . Feedback Events 1 | . 1 . . Corruption 1 | . 1 . . Feedback Blocked . | . . . . Robot Schematics Acquired . | . . . . Robots Built . | . . . . Authchips . | . . . . Time . | . . . . Total Robot Build Rating . | . . . . Part Schematics Acquired . | . . . . Parts Built . | . . . . Authchips . | . . . . Time . | . . . . Total Part Build Rating . | . . . . Parts Repaired . | . . . . Time . | . . . . Parts Recycled . | . . . . Recycled Matter . | . . . . Retrieved Matter . | . . . . Retrieved Components . | . . . . Parts Scanalyzed . | . . . . Part Schematics Acquired . | . . . . Parts Damaged . | . . . . Bothacking | -11 -10 -10 -10 ------------ Run | Yrd Mat Min Sub Used RIF Installer . | . . . . Robots Hacked . | . . . . Non-combat . | . . . . Combat . | . . . . Robot Hacks Applied . | . . . . Relay Couplers Released . | . . . . Fabnet Peak Effective % . | . . . . Robots Rewired . | . . . . Allies Hacked . | . . . . Hacks Repelled . | . . . . Allies | -11 -10 -10 -10 -------- Run | Yrd Mat Min Sub Total Allies 5 | . . 5 . Largest Group 5 | . . 5 4 Highest-Rated Group 86 | . . 86 78 Highest-Rated Ally 31 | . . 31 31 Total Orders . | . . . . Ally Attacks 69 | . . 8 61 Total Damage 760 | . . 88 672 Kills 8 | . . 2 6 Allies Corrupted . | . . . . Allies Melted . | . . . . Intel | -11 -10 -10 -10 ------- Run | Yrd Mat Min Sub Robot Analysis Total . | . . . . Derelict Logs Recovered 2 | . . 1 1 Drone Launches . | . . . . Drone Recoveries . | . . . . Exploration | -11 -10 -10 -10 ------------- Run | Yrd Mat Min Sub Turns Passed 2237 | 3 507 681 1046 Spaces Moved 1854 | 3 414 613 824 Core . | . . . . Treads . | . . . . Legs 94 | 3 91 . . Wheels 1760 | . 323 613 824 Hover . | . . . . Flight . | . . . . Fastest Speed 85 | 120 90 90 85 Average Speed 91 | 120 96 90 88 Slowest Speed 120 | 120 120 90 105 Overloaded Moves . | . . . . Propulsion Burnouts . | . . . . Robots Hopped . | . . . . Cave-ins Triggered . | . . . . Exploration Rate (%) 51 | 2 65 90 47 Regions Visited 3 Branch Regions 2 Pre-discovered Areas 1 | . . 1 . Known Exits Taken . | . . . . Unknown Exits Taken 3 | 1 1 1 . Scrap Searched 9 | . . 1 8 Spaces Dug . | . . . . Terrain Destroyed 9 | . 2 . 7 Melee . | . . . . Projectile 7 | . . . 7 AOE 2 | . 2 . . Terrain Rammed . | . . . . Walls Destroyed . | . . . . Machines Disabled . | . . . . Actions | -11 -10 -10 -10 --------- Run | Yrd Mat Min Sub Total 2237 | 2 494 734 1007 Wait 231 | . 31 116 84 Move 1851 | 2 413 612 824 Hop . | . . . . Pick Up 16 | . 13 1 2 Fast Attach 2 | . . . 2 Attach 7 | . 4 1 2 Detach 1 | . . . 1 Swap 12 | . 2 . 10 Drop 13 | . 10 . 3 Fire 104 | . 21 4 79 Melee . | . . . . Ram . | . . . . Kick . | . . . . Crush . | . . . . Escape Stasis . | . . . . Rewire . | . . . . Trap . | . . . . Miscellaneous . | . . . . Route ------- -11/Scrapyard -10/Materials (discovered 3 exits: [*Mat x2] / *Min) -10/Mines (discovered 2 exits: [*Mat] / *Sub) -10/Subcaves History --------- Turn | Location | Event 1 | -11/Scrapyard | Discovered new exit (range 3) 4 | -11/Scrapyard | Entered Materials 94 | -10/Materials | Discovered new exit (range 12) 241 | -10/Materials | Discovered new exit (range 15) 304 | -10/Materials | Build established: Mutant 342 | -10/Materials | Discovered new exit (range 12) 504 | -10/Materials | Derelicts attacked the area 511 | -10/Materials | Entered Mines 616 | -10/Mines | Learned location of 1 exit from Materials 652 | -10/Mines | Assisted by bots powering up and referring to "LRC-V3" 1016 | -10/Mines | Discovered new exit (range 5) 1017 | -10/Mines | Learned location of Storage (-7) 1184 | -10/Mines | Discovered new exit (range 3) 1192 | -10/Mines | Entered Subcaves 1192 | -10/Subcaves | Accompanied by 4 allies 1197 | -10/Subcaves | Led the pair of lost Derelicts to an unsafe place 1228 | -10/Subcaves | Learned Materials trap positions 1343 | -10/Subcaves | A swath of the cavern ceiling suddenly collapsed 1374 | -10/Subcaves | Core integrity fell below 50% 1473 | -10/Subcaves | Disturbed a concealed Subdweller 1776 | -10/Subcaves | Visited 4L-MR0's lab 1791 | -10/Subcaves | Found Powered Cannon 1792 | -10/Subcaves | Attached Powered Cannon, gained temporary slot: Power 1945 | -10/Subcaves | Shifting Twisted Machinery released Sub. Beam Cannon 1946 | -10/Subcaves | Shifting Twisted Machinery released Sub. Shrapnel Launcher 1991 | -10/Subcaves | Shifting Twisted Machinery released Sub. Power Source 1994 | -10/Subcaves | Shifting Twisted Machinery released Battle Rifle 2172 | -10/Subcaves | Core integrity fell below 20% 2238 | -10/Subcaves | Destroyed by S-10 Pest with Light Assault Rifle Last Messages --------------- 02120_ Found Scrap Shield. 02120_ Found Sub. Optics. 02120_ Found 32 Matter. 02121_ Searching scrap... 02121_ Found Sub. Optics. 02121_ Found Scrap Shield. 02121_ Found 30 Matter. 02125_ Searching scrap... 02125_ Found Slug Cannon. 02125_ Found 37 Matter. 02127_ Dropped Hvy. EM Pulse Gun. 02129_ Acquired Slug Cannon. 02176_ 25-YJ0(R) suffers critical hit (Burn). 02177_ Critical hit (Meltdown: +270). 02180_ 25-YJ0(R) destroyed. 02182_ Destroyed Sub. Optics. 02223_ S-10 Pest springs to life. 02231_ Trooper 1a destroyed. 02237_ S-10 Pest destroyed. 02238_ System corrupted: Heat flow error (+299). Map ----- +----------------------------------------------------+ | ?????????????????????????????????????????????????? | | ?????????????????????????????????????????????????? | | ?????????????????????????????????????????????????? | | ?????????????????????????????????????????????????? | | ?????????????????????????????????????????????????? | | ?????????????????????????????????????????????????? | | ?????????????????????????????????????????????????? | | ?????????????????????????????????????????????????? | | ?????????????????????????????????????????????????? | | ????????????????????????????????????????????????? | | ???????????????????????????????????????????????# | | ?????????????????????????????????????????????? # | | ?????????????????????????????????????????????? ? | | ????????????????????????????????????????????? ? | | ????????????????????????????????????????????? | | ????????????????##????????????##???????????? " " | | ????????????????#"??????????### #####??????# "" | | ????????????????#" ????????## ###???# "" | | ????????????????#" ???????# #?## | | ????????????????# ???????# ###! | | ????????????????# ???????# ##%= """ | | ?????????????????" ?????### ### & " | | ???????????????#####sss###### ## # #?# ""# | | ??????????????##;; [% ;# ### ## #????? | | ??????????????# ! ## "#?##????? | | ??????????????# @%= ## ## #???????? | | ??????????????#### ####?### #####???? | | ?????????????????# #####?#### ### ##??? | | ?????????????????# ##????## #??? | | ??????????????? ??###?# #??? | | ??????? ???? ??# ## #??? | | ?????? ??? ??# ##??? | | ?????## ??? ##??# #???? | | ?????# ???? ; #????#### ## #### #???? | | ?????# ???? #;# #???##???# ##?## #??? | | ?????? #???? ;##;;#???## ####= #??## ##??? | | ??????# ????#?######?##"" ##[% # ########???? | | ??????# ##???##"###"##"## % % ## ######? | | ??###?# #???#"""#?""##" #### ## ## | | ?##"#?# ##???#""#?#"#"" # #??# # | | ## "##?# #???##"###"" #"# ### # ## # | | """" #?# #?###"""" ""###"#### ## #### | | """ ### # #"##= "##"####???### ##??## | | "" #?# "###"!%#""""#"""???????# #???## | | " " #?# "" &!["##""#"##??????# #???# | | """" ### "###""#"#?"####???????### # ###### | | """" ##?#"""##?##???###??????## # | | """" #??##""##?###### ####???# #### # | | ""## ##???#"##""#""## "##### ##""##[%[ | | ###"" ##????###"""""[ "" # # #"%!!!% # | +----------------------------------------------------+ Best States ------------- Heat Dissipation 25 Energy Generation 15 Energy Capacity 250 Matter Stores 300 Matter Capacity 300 Sight Range 16 Terrain Scan Density 10 Evasion (%) 55 Targeting Accuracy 6 Item Schematics ----------------- None Robot Schematics ------------------ None Fabricated ------------ Nothing Alien Tech Used ----------------- None Achievements -------------- None Challenges ------------ None Game ------ Seed SubatomicTeleporterTerrabomb Manual? 0 Play Time 00:18:11 Cumulative 56.9 hours Start 2024.08.22 @ 19:09:58 End 2024.08.22 @ 19:36:41 Sessions 1 Manual Loads 0 Difficulty Rogue Special Mode None Game No. 93 Rogue 89 Adventurer 4 Explorer 0 Win Type - Total 0 Types 0/0/0/0/0/0/0/0/0 Lore% 27 Gallery% 41 Achievement% 32 Wizard Run 0 Options --------- Layout 2 ASCII 0 Keyboard 0 Movement Mouse Keybinds 0 Fullscreen 2 Font 24/Smallcaps Map View 50x44 Zoom Use 0% Tactical HUD 1 Map Filters NONE Filters NONE Steam 1 RUN: 4ede49d9-cd1a-4a82-a907-abe77061c3a6